[Event "Titled Tuesday Blitz January 17 Early 2023"]
[White "Matveeva, Olga"]
[Black "Kvaloy, Aksel Bu"]
[WhiteFideId "24107018"]
[BlackFideId "1528815"]
[WhiteElo "2128"]
[BlackElo "2321"]
[Result "0-1"]
[Round "05"]
[TimeControl "180+2"]
[Date "2023.01.17"]
[WhiteClock "0:00:10"]
[BlackClock "0:00:27"]

1. d4 {[%clk 0:03:00]}  Nf6 {[%clk 0:02:57]} 2. c4 {[%clk 0:03:01]}  e6 {[%clk 0:02:57]} 3. g3 {[%clk 0:03:01]}  d5 {[%clk 0:02:57]} 4. Nf3 {[%clk 0:03:00]}  dxc4 {[%clk 0:02:57]} 5. Bg2 {[%clk 0:03:00]}  c6 {[%clk 0:02:58]} 6. Ne5 {[%clk 0:02:59]}  Bb4+ {[%clk 0:02:57]} 7. Bd2 {[%clk 0:02:50]}  Be7 {[%clk 0:02:57]} 8. e3 {[%clk 0:02:44]}  b5 {[%clk 0:02:55]} 9. Nxc6 {[%clk 0:02:41]}  Nxc6 {[%clk 0:02:56]} 10. Bxc6+ {[%clk 0:02:41]}  Bd7 {[%clk 0:02:57]} 11. Bg2 {[%clk 0:02:37]}  O-O {[%clk 0:02:54]} 12. O-O {[%clk 0:02:36]}  Rc8 {[%clk 0:02:53]} 13. Nc3 {[%clk 0:02:26]}  b4 {[%clk 0:02:51]} 14. Ne2 {[%clk 0:02:21]}  Bc6 {[%clk 0:02:49]} 15. Rc1 {[%clk 0:02:17]}  Bxg2 {[%clk 0:02:49]} 16. Kxg2 {[%clk 0:02:18]}  Nd5 {[%clk 0:02:46]} 17. e4 {[%clk 0:02:11]}  Nb6 {[%clk 0:02:44]} 18. Be3 {[%clk 0:02:08]}  a5 {[%clk 0:02:37]} 19. Qd2 {[%clk 0:01:54]}  Qd7 {[%clk 0:02:34]} 20. Rfd1 {[%clk 0:01:53]}  Rfd8 {[%clk 0:02:33]} 21. f3 {[%clk 0:01:48]}  Qb7 {[%clk 0:02:32]} 22. Nf4 {[%clk 0:01:43]}  e5 {[%clk 0:02:26]} 23. Ne2 {[%clk 0:01:35]}  exd4 {[%clk 0:02:26]} 24. Nxd4 {[%clk 0:01:34]}  Bf6 {[%clk 0:02:23]} 25. Qf2 {[%clk 0:01:32]}  Na4 {[%clk 0:02:17]} 26. a3 {[%clk 0:01:22]}  Nc5 {[%clk 0:02:01]} 27. axb4 {[%clk 0:01:20]}  axb4 {[%clk 0:02:00]} 28. Rxc4 {[%clk 0:01:11]}  Nxe4 {[%clk 0:02:00]} 29. Qc2 {[%clk 0:00:55]}  Nd6 {[%clk 0:01:59]} 30. Rxc8 {[%clk 0:00:48]}  Rxc8 {[%clk 0:02:00]} 31. Qb3 {[%clk 0:00:48]}  Nc4 {[%clk 0:01:55]} 32. Bf2 {[%clk 0:00:47]}  Ne5 {[%clk 0:01:33]} 33. Nf5 {[%clk 0:00:46]}  Qc6 {[%clk 0:01:05]} 34. Rd6 {[%clk 0:00:38]}  Qc4 {[%clk 0:00:57]} 35. Qd1 {[%clk 0:00:30]}  Qc2 {[%clk 0:00:36]} 36. Qxc2 {[%clk 0:00:19]}  Rxc2 {[%clk 0:00:37]} 37. Rb6 {[%clk 0:00:19]}  h6 {[%clk 0:00:37]} 38. Rxb4 {[%clk 0:00:16]}  Rxf2+ {[%clk 0:00:37]} 39. Kg1 {[%clk 0:00:12]}  Rc2 {[%clk 0:00:35]} 40. Rb8+ {[%clk 0:00:11]}  Kh7 {[%clk 0:00:35]} 41. b4 {[%clk 0:00:11]}  Nxf3+ {[%clk 0:00:35]} 42. Kf1 {[%clk 0:00:12]}  g6 {[%clk 0:00:32]} 43. Ne3 {[%clk 0:00:11]}  Nxh2+ {[%clk 0:00:30]} 44. Ke1 {[%clk 0:00:10]}  Nf3+ {[%clk 0:00:30]} 45. Kf1 {[%clk 0:00:11]}  Rb2 {[%clk 0:00:28]} 46. Nd5 {[%clk 0:00:10]}  Bd4 {[%clk 0:00:27]} 0-1


[Site "https://www.chess.com"]

[Event "Titled Tuesday Blitz January 17 Early 2023"]
[White "Goltseva, Ekaterina"]
[Black "Real_taiatai"]
[WhiteFideId "24173770"]
[WhiteElo "2283"]
[BlackElo "2315"]
[Result "1-0"]
[Round "05"]
[TimeControl "180+2"]
[Date "2023.01.17"]
[WhiteClock "0:00:10"]
[BlackClock "0:00:20"]

1. c4 {[%clk 0:02:48]}  e6 {[%clk 0:02:56]} 2. Nc3 {[%clk 0:02:48]}  d5 {[%clk 0:02:56]} 3. e3 {[%clk 0:02:49]}  Nf6 {[%clk 0:02:53]} 4. Nf3 {[%clk 0:02:49]}  Be7 {[%clk 0:02:53]} 5. b3 {[%clk 0:02:48]}  O-O {[%clk 0:02:53]} 6. Bb2 {[%clk 0:02:49]}  c5 {[%clk 0:02:53]} 7. cxd5 {[%clk 0:02:48]}  Nxd5 {[%clk 0:02:44]} 8. Nxd5 {[%clk 0:02:48]}  Qxd5 {[%clk 0:02:45]} 9. Bc4 {[%clk 0:02:46]}  Qh5 {[%clk 0:02:38]} 10. g4 {[%clk 0:02:33]}  Qh3 {[%clk 0:02:27]} 11. Bf1 {[%clk 0:02:15]}  Qh6 {[%clk 0:02:19]} 12. h4 {[%clk 0:02:07]}  f6 {[%clk 0:02:06]} 13. Rg1 {[%clk 0:01:57]}  Nc6 {[%clk 0:02:03]} 14. Qc2 {[%clk 0:01:27]}  Nb4 {[%clk 0:00:46]} 15. Qc3 {[%clk 0:01:27]}  Qg6 {[%clk 0:00:42]} 16. d3 {[%clk 0:01:11]}  Rd8 {[%clk 0:00:40]} 17. e4 {[%clk 0:01:07]}  e5 {[%clk 0:00:39]} 18. g5 {[%clk 0:00:55]}  Qh5 {[%clk 0:00:32]} 19. Be2 {[%clk 0:00:55]}  Bg4 {[%clk 0:00:28]} 20. Rxg4 {[%clk 0:00:37]}  Qxg4 {[%clk 0:00:28]} 21. Nxe5 {[%clk 0:00:38]}  Qg1+ {[%clk 0:00:24]} 22. Kd2 {[%clk 0:00:32]}  Qxf2 {[%clk 0:00:24]} 23. Rf1 {[%clk 0:00:17]}  Qxh4 {[%clk 0:00:24]} 24. Nf3 {[%clk 0:00:03]}  Qf4+ {[%clk 0:00:23]} 25. Ke1 {[%clk 0:00:02]}  Qg3+ {[%clk 0:00:20]} 26. Kd2 {[%clk 0:00:02]}  fxg5 {[%clk 0:00:19]} 27. a3 {[%clk 0:00:03]}  Bf6 {[%clk 0:00:19]} 28. Qc4+ {[%clk 0:00:03]}  Kh8 {[%clk 0:00:18]} 29. Bxf6 {[%clk 0:00:04]}  Qf4+ {[%clk 0:00:18]} 30. Ke1 {[%clk 0:00:04]}  gxf6 {[%clk 0:00:17]} 31. axb4 {[%clk 0:00:04]}  cxb4 {[%clk 0:00:17]} 32. Nd4 {[%clk 0:00:04]}  Qg3+ {[%clk 0:00:16]} 33. Kd2 {[%clk 0:00:05]}  Qe5 {[%clk 0:00:17]} 34. Nf5 {[%clk 0:00:05]}  Rac8 {[%clk 0:00:17]} 35. Qf7 {[%clk 0:00:05]}  Qc3+ {[%clk 0:00:15]} 36. Ke3 {[%clk 0:00:05]}  Qc5+ {[%clk 0:00:15]} 37. Kf3 {[%clk 0:00:06]}  Qf8 {[%clk 0:00:15]} 38. Qxb7 {[%clk 0:00:05]}  Rb8 {[%clk 0:00:14]} 39. Qxa7 {[%clk 0:00:05]}  Rbc8 {[%clk 0:00:14]} 40. Rh1 {[%clk 0:00:04]}  Qg8 {[%clk 0:00:14]} 41. Rh6 {[%clk 0:00:03]}  Rf8 {[%clk 0:00:14]} 42. Qe7 {[%clk 0:00:03]}  Rf7 {[%clk 0:00:14]} 43. Qe6 {[%clk 0:00:03]}  Qg7 {[%clk 0:00:14]} 44. Qd6 {[%clk 0:00:02]}  Rg8 {[%clk 0:00:14]} 45. Qe6 {[%clk 0:00:03]}  Qxh6 {[%clk 0:00:14]} 46. Nxh6 {[%clk 0:00:02]}  Rff8 {[%clk 0:00:14]} 47. Nf7+ {[%clk 0:00:03]}  Kg7 {[%clk 0:00:14]} 48. Nd6 {[%clk 0:00:03]}  Rd8 {[%clk 0:00:14]} 49. Qe7+ {[%clk 0:00:04]}  Kh6 {[%clk 0:00:14]} 50. Nf7+ {[%clk 0:00:05]}  Kh5 {[%clk 0:00:14]} 51. Nxd8 {[%clk 0:00:05]}  g4+ {[%clk 0:00:15]} 52. Kg3 {[%clk 0:00:05]}  Kg5 {[%clk 0:00:15]} 53. Qf7 {[%clk 0:00:06]}  Rg7 {[%clk 0:00:15]} 54. Qf8 {[%clk 0:00:06]}  Rc7 {[%clk 0:00:15]} 55. Ne6+ {[%clk 0:00:07]}  Kh5 {[%clk 0:00:15]} 56. Nxc7 {[%clk 0:00:08]}  f5 {[%clk 0:00:14]} 57. Qxf5+ {[%clk 0:00:07]}  Kh6 {[%clk 0:00:15]} 58. Qf4+ {[%clk 0:00:06]}  Kg7 {[%clk 0:00:15]} 59. Qxg4+ {[%clk 0:00:07]}  Kh8 {[%clk 0:00:16]} 60. Qf4 {[%clk 0:00:07]}  h5 {[%clk 0:00:17]} 61. e5 {[%clk 0:00:07]}  Kg7 {[%clk 0:00:18]} 62. Qf6+ {[%clk 0:00:07]}  Kh7 {[%clk 0:00:18]} 63. e6 {[%clk 0:00:07]}  h4+ {[%clk 0:00:18]} 64. Kh2 {[%clk 0:00:08]}  Kg8 {[%clk 0:00:19]} 65. e7 {[%clk 0:00:08]}  Kh7 {[%clk 0:00:19]} 66. e8=Q {[%clk 0:00:09]}  h3 {[%clk 0:00:20]} 67. Qeg6# {[%clk 0:00:10]} 1-0


[Site "https://www.chess.com"]

[Event "Titled Tuesday Blitz January 17 Early 2023"]
[White "Bettalli, Francesco"]
[Black "Grot, Blazej"]
[WhiteFideId "2816453"]
[BlackFideId "21835845"]
[WhiteElo "2252"]
[BlackElo "1990"]
[Result "1-0"]
[Round "05"]
[TimeControl "180+2"]
[Date "2023.01.17"]
[WhiteClock "0:00:17"]
[BlackClock "0:00:09"]

1. d4 {[%clk 0:03:00]}  Nf6 {[%clk 0:02:59]} 2. Nc3 {[%clk 0:03:01]}  d5 {[%clk 0:02:57]} 3. Bg5 {[%clk 0:03:00]}  e6 {[%clk 0:02:57]} 4. e4 {[%clk 0:02:58]}  Be7 {[%clk 0:02:56]} 5. e5 {[%clk 0:02:55]}  Nfd7 {[%clk 0:02:55]} 6. Bxe7 {[%clk 0:02:56]}  Qxe7 {[%clk 0:02:55]} 7. f4 {[%clk 0:02:57]}  a6 {[%clk 0:02:51]} 8. Nf3 {[%clk 0:02:56]}  c5 {[%clk 0:02:51]} 9. dxc5 {[%clk 0:02:56]}  Nxc5 {[%clk 0:02:50]} 10. Bd3 {[%clk 0:02:56]}  Nc6 {[%clk 0:02:50]} 11. Qd2 {[%clk 0:02:49]}  b5 {[%clk 0:02:48]} 12. Ne2 {[%clk 0:02:45]}  Bb7 {[%clk 0:02:47]} 13. Ned4 {[%clk 0:02:45]}  Nxd4 {[%clk 0:02:46]} 14. Nxd4 {[%clk 0:02:46]}  Rc8 {[%clk 0:02:42]} 15. O-O {[%clk 0:02:45]}  Nd7 {[%clk 0:02:41]} 16. a3 {[%clk 0:02:44]}  Qc5 {[%clk 0:02:41]} 17. c3 {[%clk 0:02:43]}  Nb6 {[%clk 0:02:39]} 18. Qf2 {[%clk 0:02:37]}  Nc4 {[%clk 0:02:38]} 19. Kh1 {[%clk 0:02:37]}  O-O {[%clk 0:02:36]} 20. Rae1 {[%clk 0:02:34]}  g6 {[%clk 0:02:21]} 21. b4 {[%clk 0:02:20]}  Qe7 {[%clk 0:02:19]} 22. f5 {[%clk 0:02:04]}  exf5 {[%clk 0:02:17]} 23. Bxf5 {[%clk 0:02:04]}  Rc7 {[%clk 0:01:53]} 24. e6 {[%clk 0:01:51]}  Kh8 {[%clk 0:01:45]} 25. Qg3 {[%clk 0:01:35]}  f6 {[%clk 0:01:41]} 26. Bxg6 {[%clk 0:01:31]}  hxg6 {[%clk 0:01:38]} 27. Qxg6 {[%clk 0:01:32]}  Qg7 {[%clk 0:01:37]} 28. Qd3 {[%clk 0:01:17]}  Rg8 {[%clk 0:01:32]} 29. Re2 {[%clk 0:01:09]}  Qg4 {[%clk 0:01:19]} 30. Rxf6 {[%clk 0:00:55]}  Rh7 {[%clk 0:01:10]} 31. Rf7 {[%clk 0:00:44]}  Rxf7 {[%clk 0:00:55]} 32. exf7 {[%clk 0:00:45]}  Rf8 {[%clk 0:00:55]} 33. Re8 {[%clk 0:00:34]}  Kg7 {[%clk 0:00:34]} 34. Nf5+ {[%clk 0:00:21]}  Kxf7 {[%clk 0:00:13]} 35. Nh6+ {[%clk 0:00:21]}  Kxe8 {[%clk 0:00:13]} 36. Nxg4 {[%clk 0:00:22]}  Nd6 {[%clk 0:00:13]} 37. h3 {[%clk 0:00:20]}  Ne4 {[%clk 0:00:12]} 38. Qd4 {[%clk 0:00:15]}  Ng3+ {[%clk 0:00:12]} 39. Kh2 {[%clk 0:00:16]}  Nf1+ {[%clk 0:00:11]} 40. Kg1 {[%clk 0:00:16]}  Ng3 {[%clk 0:00:11]} 41. Qe5+ {[%clk 0:00:17]}  Kd7 {[%clk 0:00:09]} 42. Qxg3 {[%clk 0:00:17]} 1-0


[Site "https://www.chess.com"]

[Event "Titled Tuesday Blitz January 17 Early 2023"]
[White "Ahmad, Al Khatib"]
[Black "Lakshmi C"]
[WhiteFideId "8103178"]
[BlackFideId "25035347"]
[WhiteElo "2344"]
[BlackElo "1928"]
[Result "0-1"]
[Round "05"]
[TimeControl "180+2"]
[Date "2023.01.17"]
[WhiteClock "0:00:03"]
[BlackClock "0:00:05"]

1. Nf3 {[%clk 0:03:00]}  Nf6 {[%clk 0:02:54]} 2. g3 {[%clk 0:02:59]}  g6 {[%clk 0:02:49]} 3. b3 {[%clk 0:02:59]}  Bg7 {[%clk 0:02:49]} 4. Bb2 {[%clk 0:03:00]}  O-O {[%clk 0:02:48]} 5. Bg2 {[%clk 0:02:59]}  d6 {[%clk 0:02:38]} 6. d4 {[%clk 0:02:59]}  Nbd7 {[%clk 0:02:36]} 7. O-O {[%clk 0:02:58]}  Re8 {[%clk 0:02:34]} 8. c4 {[%clk 0:02:42]}  c6 {[%clk 0:02:31]} 9. Nbd2 {[%clk 0:02:32]}  e5 {[%clk 0:02:06]} 10. dxe5 {[%clk 0:02:13]}  dxe5 {[%clk 0:02:04]} 11. Ng5 {[%clk 0:02:10]}  Nc5 {[%clk 0:01:52]} 12. b4 {[%clk 0:02:04]}  Na4 {[%clk 0:01:32]} 13. Qxa4 {[%clk 0:00:52]}  Qxd2 {[%clk 0:01:25]} 14. Nf3 {[%clk 0:00:39]}  Qxb2 {[%clk 0:00:55]} 15. Rab1 {[%clk 0:00:38]}  Qxe2 {[%clk 0:00:51]} 16. Rfe1 {[%clk 0:00:22]}  Qxc4 {[%clk 0:00:46]} 17. Nxe5 {[%clk 0:00:22]}  Qb5 {[%clk 0:00:29]} 18. Qc2 {[%clk 0:00:06]}  Bf5 {[%clk 0:00:26]} 19. Qb3 {[%clk 0:00:04]}  Be6 {[%clk 0:00:24]} 20. Qc2 {[%clk 0:00:02]}  Bf5 {[%clk 0:00:09]} 21. Qb3 {[%clk 0:00:02]}  Rxe5 {[%clk 0:00:09]} 22. Rxe5 {[%clk 0:00:01]}  Qxe5 {[%clk 0:00:09]} 23. Rf1 {[%clk 0:00:02]}  Qc7 {[%clk 0:00:08]} 24. a4 {[%clk 0:00:02]}  Be6 {[%clk 0:00:09]} 25. Qb2 {[%clk 0:00:03]}  Nd5 {[%clk 0:00:09]} 26. Qb1 {[%clk 0:00:03]}  Nc3 {[%clk 0:00:08]} 27. Qc2 {[%clk 0:00:02]}  Nd5 {[%clk 0:00:06]} 28. b5 {[%clk 0:00:02]}  cxb5 {[%clk 0:00:06]} 29. Qd1 {[%clk 0:00:01]}  Qd7 {[%clk 0:00:06]} 30. axb5 {[%clk 0:00:01]}  Qxb5 {[%clk 0:00:05]} 31. Re1 {[%clk 0:00:02]}  Nb6 {[%clk 0:00:05]} 32. h4 {[%clk 0:00:02]}  Qd7 {[%clk 0:00:05]} 33. Qc1 {[%clk 0:00:02]}  Rc8 {[%clk 0:00:05]} 34. Qb1 {[%clk 0:00:02]}  Qc7 {[%clk 0:00:06]} 35. h5 {[%clk 0:00:02]}  Nc4 {[%clk 0:00:06]} 36. h6 {[%clk 0:00:02]}  Bh8 {[%clk 0:00:06]} 37. Qb4 {[%clk 0:00:03]}  Qd6 {[%clk 0:00:06]} 38. Rc1 {[%clk 0:00:03]}  Qxb4 {[%clk 0:00:06]} 39. Rd1 {[%clk 0:00:02]}  Qb2 {[%clk 0:00:06]} 40. Re1 {[%clk 0:00:01]}  Qd2 {[%clk 0:00:05]} 41. Rf1 {[%clk 0:00:01]}  Bd5 {[%clk 0:00:05]} 42. Bxd5 {[%clk 0:00:01]}  Qxd5 {[%clk 0:00:05]} 43. Re1 {[%clk 0:00:02]}  Qf3 {[%clk 0:00:05]} 44. Re3 {[%clk 0:00:01]}  Nxe3 {[%clk 0:00:05]} 45. fxe3 {[%clk 0:00:02]}  Rc1+ {[%clk 0:00:05]} 46. Kh2 {[%clk 0:00:03]}  Rh1# {[%clk 0:00:05]} 0-1


[Site "https://www.chess.com"]

[Event "Titled Tuesday Blitz January 17 Early 2023"]
[White "Afanasieva, Alexandra"]
[Black "Sanchez, Robert"]
[WhiteFideId "34126926"]
[BlackFideId "2034360"]
[WhiteElo "1857"]
[BlackElo "1966"]
[Result "0-1"]
[Round "05"]
[TimeControl "180+2"]
[Date "2023.01.17"]
[WhiteClock "0:00:01"]
[BlackClock "0:00:14"]

1. e4 {[%clk 0:03:00]}  d5 {[%clk 0:03:00]} 2. exd5 {[%clk 0:03:00]}  Qxd5 {[%clk 0:03:01]} 3. Nc3 {[%clk 0:02:58]}  Qe6+ {[%clk 0:03:01]} 4. Be2 {[%clk 0:02:56]}  Qg6 {[%clk 0:03:01]} 5. Bf3 {[%clk 0:02:54]}  Nc6 {[%clk 0:03:01]} 6. Nge2 {[%clk 0:02:52]}  e5 {[%clk 0:03:01]} 7. d3 {[%clk 0:02:49]}  Bd7 {[%clk 0:03:01]} 8. Be3 {[%clk 0:02:46]}  O-O-O {[%clk 0:03:02]} 9. Qd2 {[%clk 0:02:45]}  f5 {[%clk 0:03:02]} 10. g3 {[%clk 0:02:41]}  Nf6 {[%clk 0:03:01]} 11. O-O-O {[%clk 0:02:39]}  Kb8 {[%clk 0:03:00]} 12. h4 {[%clk 0:02:33]}  h6 {[%clk 0:02:55]} 13. h5 {[%clk 0:02:32]}  Qe8 {[%clk 0:02:56]} 14. Kb1 {[%clk 0:02:28]}  Bb4 {[%clk 0:02:55]} 15. a3 {[%clk 0:02:28]}  Ba5 {[%clk 0:02:56]} 16. b4 {[%clk 0:01:55]}  Bb6 {[%clk 0:02:55]} 17. Bxb6 {[%clk 0:01:46]}  axb6 {[%clk 0:02:56]} 18. Rhe1 {[%clk 0:01:38]}  Nxh5 {[%clk 0:02:47]} 19. Nc1 {[%clk 0:01:27]}  Nf6 {[%clk 0:02:41]} 20. Nb3 {[%clk 0:01:27]}  g5 {[%clk 0:02:28]} 21. Nd5 {[%clk 0:01:17]}  Nxd5 {[%clk 0:02:21]} 22. Bxd5 {[%clk 0:01:18]}  Qe7 {[%clk 0:02:16]} 23. f4 {[%clk 0:01:17]}  Qg7 {[%clk 0:02:01]} 24. Bxc6 {[%clk 0:01:14]}  Bxc6 {[%clk 0:02:01]} 25. Rxe5 {[%clk 0:01:14]}  Rdf8 {[%clk 0:01:44]} 26. Rde1 {[%clk 0:01:06]}  h5 {[%clk 0:01:37]} 27. Qc3 {[%clk 0:01:02]}  Qd7 {[%clk 0:01:25]} 28. Nd4 {[%clk 0:00:55]}  gxf4 {[%clk 0:01:22]} 29. gxf4 {[%clk 0:00:54]}  h4 {[%clk 0:01:09]} 30. b5 {[%clk 0:00:40]}  Bd5 {[%clk 0:01:03]} 31. Nxf5 {[%clk 0:00:32]}  h3 {[%clk 0:00:37]} 32. Ne3 {[%clk 0:00:13]}  Bf3 {[%clk 0:00:30]} 33. Nf1 {[%clk 0:00:07]}  h2 {[%clk 0:00:22]} 34. Nxh2 {[%clk 0:00:04]}  Rxh2 {[%clk 0:00:23]} 35. Re7 {[%clk 0:00:04]}  Qxb5+ {[%clk 0:00:23]} 36. Kc1 {[%clk 0:00:05]}  Bc6 {[%clk 0:00:20]} 37. Qg7 {[%clk 0:00:04]}  Rc8 {[%clk 0:00:20]} 38. Qc3 {[%clk 0:00:02]}  Qc5 {[%clk 0:00:17]} 39. Qxc5 {[%clk 0:00:02]}  bxc5 {[%clk 0:00:18]} 40. f5 {[%clk 0:00:02]}  Rf2 {[%clk 0:00:18]} 41. Rf7 {[%clk 0:00:02]}  Rg8 {[%clk 0:00:16]} 42. Ree7 {[%clk 0:00:01]}  Rgg2 {[%clk 0:00:15]} 43. Rxc7 {[%clk 0:00:02]}  Rxc2+ {[%clk 0:00:15]} 44. Kd1 {[%clk 0:00:02]}  Ra2 {[%clk 0:00:14]} 45. Rce7 {[%clk 0:00:01]}  Ra1# {[%clk 0:00:14]} 0-1


[Site "https://www.chess.com"]

[Event "Titled Tuesday Blitz January 17 Early 2023"]
[White "MitzyCaballero"]
[Black "Heinemann, Josefine"]
[BlackFideId "12900460"]
[WhiteElo "2235"]
[BlackElo "2289"]
[Result "0-1"]
[Round "05"]
[TimeControl "180+2"]
[Date "2023.01.17"]
[WhiteClock "0:00:10"]
[BlackClock "0:00:35"]

1. d4 {[%clk 0:03:00]}  Nf6 {[%clk 0:02:58]} 2. Nf3 {[%clk 0:02:59]}  d5 {[%clk 0:02:57]} 3. c4 {[%clk 0:02:58]}  e6 {[%clk 0:02:56]} 4. g3 {[%clk 0:02:56]}  dxc4 {[%clk 0:02:50]} 5. Bg2 {[%clk 0:02:53]}  c5 {[%clk 0:02:49]} 6. O-O {[%clk 0:02:51]}  Nc6 {[%clk 0:02:48]} 7. Qa4 {[%clk 0:02:18]}  Bd7 {[%clk 0:02:46]} 8. Qxc4 {[%clk 0:02:16]}  b5 {[%clk 0:02:46]} 9. Qd3 {[%clk 0:02:05]}  c4 {[%clk 0:02:45]} 10. Qd1 {[%clk 0:02:05]}  Rc8 {[%clk 0:02:45]} 11. Bf4 {[%clk 0:01:39]}  Be7 {[%clk 0:02:42]} 12. Nc3 {[%clk 0:01:33]}  a6 {[%clk 0:02:35]} 13. a3 {[%clk 0:01:27]}  O-O {[%clk 0:02:33]} 14. e4 {[%clk 0:01:26]}  Na5 {[%clk 0:02:28]} 15. Qc2 {[%clk 0:01:21]}  Nb3 {[%clk 0:02:26]} 16. Rad1 {[%clk 0:01:21]}  a5 {[%clk 0:02:26]} 17. d5 {[%clk 0:01:19]}  exd5 {[%clk 0:02:23]} 18. exd5 {[%clk 0:01:18]}  Bc5 {[%clk 0:02:14]} 19. Bg5 {[%clk 0:01:06]}  h6 {[%clk 0:02:13]} 20. Bxf6 {[%clk 0:01:05]}  Qxf6 {[%clk 0:02:12]} 21. Ne4 {[%clk 0:01:06]}  Qg6 {[%clk 0:02:10]} 22. Ne5 {[%clk 0:01:02]}  Qf5 {[%clk 0:02:01]} 23. g4 {[%clk 0:01:00]}  Qxe5 {[%clk 0:02:00]} 24. Rfe1 {[%clk 0:00:51]}  Qf4 {[%clk 0:01:33]} 25. h3 {[%clk 0:00:49]}  Nd4 {[%clk 0:01:27]} 26. Qc3 {[%clk 0:00:45]}  b4 {[%clk 0:01:06]} 27. Qe3 {[%clk 0:00:16]}  Qxe3 {[%clk 0:01:01]} 28. fxe3 {[%clk 0:00:17]}  Nc2 {[%clk 0:01:01]} 29. Nxc5 {[%clk 0:00:17]}  Rxc5 {[%clk 0:00:58]} 30. Re2 {[%clk 0:00:18]}  b3 {[%clk 0:00:57]} 31. e4 {[%clk 0:00:17]}  c3 {[%clk 0:00:56]} 32. bxc3 {[%clk 0:00:17]}  Rxc3 {[%clk 0:00:56]} 33. Rb1 {[%clk 0:00:17]}  a4 {[%clk 0:00:56]} 34. e5 {[%clk 0:00:16]}  Nxa3 {[%clk 0:00:55]} 35. Rbb2 {[%clk 0:00:16]}  Nc4 {[%clk 0:00:55]} 36. e6 {[%clk 0:00:16]}  fxe6 {[%clk 0:00:45]} 37. dxe6 {[%clk 0:00:17]}  Bxe6 {[%clk 0:00:44]} 38. Rb1 {[%clk 0:00:12]}  Bf7 {[%clk 0:00:43]} 39. Be4 {[%clk 0:00:11]}  a3 {[%clk 0:00:42]} 40. Rf1 {[%clk 0:00:11]}  a2 {[%clk 0:00:38]} 41. Ref2 {[%clk 0:00:11]}  b2 {[%clk 0:00:38]} 42. Rxf7 {[%clk 0:00:11]}  Rxf7 {[%clk 0:00:38]} 43. Bd5 {[%clk 0:00:11]}  b1=Q {[%clk 0:00:35]} 44. Bxf7+ {[%clk 0:00:10]}  Kh8 {[%clk 0:00:35]} 45. Rxb1 {[%clk 0:00:10]}  axb1=Q+ {[%clk 0:00:35]} 0-1


[Site "https://www.chess.com"]

[Event "Titled Tuesday Blitz January 17 Early 2023"]
[White "Kostenko, Petr"]
[Black "Martin, Lewis"]
[WhiteFideId "13700669"]
[BlackFideId "410551"]
[WhiteElo "2371"]
[BlackElo "2135"]
[Result "1-0"]
[Round "05"]
[TimeControl "180+2"]
[Date "2023.01.17"]
[WhiteClock "0:00:10"]
[BlackClock "0:00:34"]

1. c4 {[%clk 0:02:30]}  Nf6 {[%clk 0:02:57]} 2. g3 {[%clk 0:02:29]}  c6 {[%clk 0:02:57]} 3. b3 {[%clk 0:02:28]}  d5 {[%clk 0:02:57]} 4. Bb2 {[%clk 0:02:29]}  Bf5 {[%clk 0:02:47]} 5. Bg2 {[%clk 0:02:29]}  e6 {[%clk 0:02:47]} 6. Nf3 {[%clk 0:02:29]}  Nbd7 {[%clk 0:02:46]} 7. O-O {[%clk 0:02:30]}  h5 {[%clk 0:02:45]} 8. d3 {[%clk 0:02:28]}  Bd6 {[%clk 0:02:41]} 9. Nbd2 {[%clk 0:02:23]}  Qc7 {[%clk 0:02:31]} 10. Qc2 {[%clk 0:02:11]}  O-O-O {[%clk 0:02:29]} 11. cxd5 {[%clk 0:01:41]}  exd5 {[%clk 0:02:27]} 12. e4 {[%clk 0:01:35]}  dxe4 {[%clk 0:02:25]} 13. dxe4 {[%clk 0:01:34]}  Bg6 {[%clk 0:02:25]} 14. Nh4 {[%clk 0:01:31]}  Rhe8 {[%clk 0:02:18]} 15. Rad1 {[%clk 0:01:29]}  Kb8 {[%clk 0:02:12]} 16. a3 {[%clk 0:01:21]}  Bh7 {[%clk 0:02:00]} 17. Nc4 {[%clk 0:01:13]}  Bc5 {[%clk 0:01:51]} 18. b4 {[%clk 0:01:12]}  Bb6 {[%clk 0:01:50]} 19. Rfe1 {[%clk 0:01:10]}  Ng4 {[%clk 0:01:46]} 20. Nxb6 {[%clk 0:01:06]}  Qxb6 {[%clk 0:01:43]} 21. h3 {[%clk 0:00:43]}  Ngf6 {[%clk 0:01:37]} 22. Bd4 {[%clk 0:00:42]}  Qc7 {[%clk 0:01:31]} 23. f4 {[%clk 0:00:34]}  g5 {[%clk 0:01:22]} 24. fxg5 {[%clk 0:00:33]}  Qxg3 {[%clk 0:01:22]} 25. gxf6 {[%clk 0:00:20]}  Qxh4 {[%clk 0:01:21]} 26. Qf2 {[%clk 0:00:21]}  Qg5 {[%clk 0:01:15]} 27. Bxa7+ {[%clk 0:00:20]}  Ka8 {[%clk 0:01:14]} 28. Be3 {[%clk 0:00:20]}  Qg6 {[%clk 0:01:09]} 29. Qc2 {[%clk 0:00:18]}  Rg8 {[%clk 0:01:04]} 30. Rd2 {[%clk 0:00:16]}  Qxe4 {[%clk 0:00:54]} 31. Qa4+ {[%clk 0:00:14]}  Kb8 {[%clk 0:00:53]} 32. Ba7+ {[%clk 0:00:15]}  Kc8 {[%clk 0:00:54]} 33. Rxe4 {[%clk 0:00:14]}  Bxe4 {[%clk 0:00:54]} 34. Be3 {[%clk 0:00:11]}  Nxf6 {[%clk 0:00:35]} 35. Qa8+ {[%clk 0:00:11]}  Kc7 {[%clk 0:00:35]} 36. Bf4+ {[%clk 0:00:11]}  Kb6 {[%clk 0:00:34]} 37. Qa5# {[%clk 0:00:10]} 1-0


[Site "https://www.chess.com"]